bitfinex-derivatives/quotes_BTCF0:USTF0_20240905
["timestamp","ask_amount","ask_price","bid_price","bid_amount"]
[1725552699377,1.1369874,56106.0,56089.0,0.07107287]
[1725552699378,0.5828,56096.0,56089.0,0.089147]
[1725552699576,0.3628,56090.0,56089.0,0.089148]
[1725552700171,0.3628,56090.0,56089.0,0.309148]
[1725552700472,0.3628,56090.0,56085.0,0.0724]
[1725552700672,0.002,56086.0,56085.0,0.161554]
[1725552702476,0.005,56086.0,56085.0,0.161554]
[1725552704082,0.005,56086.0,56085.0,0.431554]
[1725552706571,0.005,56086.0,56085.0,0.520708]
[1725552706981,0.005,56086.0,56085.0,1.744742]
[1725552707184,0.005,56086.0,56085.0,1.144742]
[1725552707384,0.005,56086.0,56085.0,2.109862]
[1725552707977,0.005,56086.0,56085.0,3.244742]
[1725552708277,0.005,56086.0,56085.0,2.109862]
[1725552708483,0.005,56086.0,56085.0,3.244742]
[1725552708676,0.002,56086.0,56085.0,2.110862]
[1725552715091,0.002,56086.0,56085.0,1.662554]
[1725552715292,0.002,56086.0,56085.0,0.162554]
[1725552715795,0.002,56086.0,56085.0,0.090154]
[1725552716003,0.156853,56086.0,56085.0,0.090154]
[1725552716188,0.0677,56086.0,56085.0,0.090154]
[1725552716683,0.0677,56086.0,56085.0,0.001]
[1725552716684,0.961733,56086.0,56085.0,0.001]
[1725552716991,0.089161,56081.0,56080.0,0.08]
[1725552717190,1.082761,56081.0,56080.0,0.08]
[1725552717387,2.217721,56081.0,56080.0,0.08]
[1725552719404,1.617721,56081.0,56080.0,0.085]
[1725552719784,2.217721,56081.0,56080.0,0.085]
[1725552720083,0.79995232,56081.0,56080.0,0.174162]
[1725552720288,0.72904443,56081.0,56080.0,0.174162]
[1725552720588,0.79995232,56081.0,56080.0,0.174162]
[1725552720793,0.72904443,56081.0,56080.0,0.085]
[1725552720991,1.86400443,56081.0,56080.0,0.085]
[1725552721194,0.72904443,56081.0,56080.0,0.085]
[1725552721796,1.26400443,56081.0,56080.0,0.085]
[1725552722697,0.72904443,56081.0,56080.0,0.085]
[1725552722996,1.86400443,56081.0,56080.0,0.085]
[1725552723498,0.53496,56080.0,56061.0,0.0587]
[1725552723691,0.9916,56064.0,56063.0,0.089189]
[1725552723884,0.7216,56064.0,56063.0,0.089189]
[1725552724090,0.9416,56064.0,56063.0,0.089189]
[1725552724283,1.01256398,56064.0,56063.0,0.089189]
[1725552724493,0.9416,56064.0,56063.0,0.089189]
[1725552724689,0.9416,56064.0,56061.0,0.061]
[1725552724896,0.004,56062.0,56061.0,0.150193]
[1725552726387,0.004,56062.0,56061.0,0.159193]
[1725552726587,0.005,56062.0,56061.0,0.168193]
[1725552727904,0.01060342,56062.0,56061.0,0.168193]
[1725552728902,0.01060342,56062.0,56061.0,0.257386]
[1725552729094,0.005,56062.0,56061.0,0.257386]
[1725552732304,0.005,56062.0,56061.0,0.346579]
[1725552732800,0.005,56062.0,56061.0,0.257386]
[1725552732994,0.005,56062.0,56061.0,0.168193]
[1725552734508,0.225,56062.0,56061.0,0.018]
[1725552735004,0.005,56062.0,56061.0,0.107193]
[1725552735806,0.005,56062.0,56061.0,0.098193]
[1725552736103,0.014,56062.0,56061.0,0.091193]
[1725552737497,0.234,56062.0,56061.0,0.091193]
[1725552740611,0.014,56062.0,56061.0,0.091193]
[1725552740810,0.014,56062.0,56061.0,0.311193]
[1725552740998,0.014,56062.0,56061.0,0.400386]
[1725552742511,0.014,56062.0,56061.0,0.311193]
[1725552743504,0.014,56062.0,56061.0,0.091193]
[1725552745401,0.08496398,56062.0,56061.0,0.311193]
[1725552745910,0.08496398,56062.0,56061.0,0.091193]
[1725552746413,0.014,56062.0,56061.0,0.091193]
[1725552751318,0.10270498,56062.0,56061.0,0.091193]
[1725552752305,0.014,56062.0,56061.0,0.091193]
[1725552753210,0.10293916,56062.0,56061.0,0.091193]
[1725552753412,0.014,56062.0,56061.0,0.091193]
[1725552755415,0.04292324,56062.0,56061.0,0.091193]
[1725552755923,0.04292324,56062.0,56061.0,0.002]
[1725552756404,1.35642823,56062.0,56061.0,0.002]
[1725552756609,0.089196,56059.0,56058.0,0.00017844]
[1725552756808,0.089196,56059.0,56039.0,0.22]
[1725552756809,0.64819277,56059.0,56044.0,0.11749156]
[1725552757004,0.64819277,56059.0,56044.0,0.20671156]
[1725552757005,0.3648,56045.0,56044.0,0.20671156]
[1725552757209,0.3648,56045.0,56044.0,0.15322]
[1725552757724,0.3648,56045.0,56044.0,0.24244]
[1725552758113,0.3648,56045.0,56044.0,0.15322]
[1725552758714,0.3648,56045.0,56044.0,0.16222]
[1725552759531,0.3648,56045.0,56044.0,0.073]
[1725552759716,0.3937337,56045.0,56044.0,0.009]
[1725552760227,0.3947337,56045.0,56044.0,0.015]
[1725552761130,0.3937337,56045.0,56043.0,0.08922]
[1725552761312,0.308714,56044.0,56043.0,0.08922]
[1725552761517,0.312714,56044.0,56040.0,0.0591]
[1725552761812,0.004,56041.0,56040.0,0.148326]
[1725552763323,0.07489704,56041.0,56040.0,0.148326]
[1725552763522,0.07589704,56041.0,56040.0,0.148326]
[1725552764531,0.005,56041.0,56040.0,0.148326]
[1725552764915,0.08142946,56041.0,56040.0,0.148326]
[1725552765119,0.01053242,56041.0,56040.0,0.148326]
[1725552769236,0.01053242,56041.0,56040.0,0.237552]
[1725552770834,0.01053242,56041.0,56040.0,0.148326]
[1725552780449,0.01053242,56041.0,56040.0,0.089226]
[1725552780949,0.09975642,56041.0,56037.0,0.089231]
[1725552781132,0.09975642,56041.0,56036.0,0.0648]
[1725552781133,0.224,56038.0,56036.0,0.0648]
[1725552781441,0.3648,56037.0,56036.0,0.154032]
[1725552781635,0.3608,56037.0,56036.0,0.154032]
[1725552783447,0.3608,56037.0,56036.0,0.156032]
[1725552784238,0.3608,56037.0,56036.0,0.160032]
[1725552785249,0.3608,56037.0,56036.0,0.249264]
[1725552785751,0.3608,56037.0,56036.0,0.160032]
[1725552786349,0.44957774,56037.0,56036.0,0.160032]
[1725552787145,0.3608,56037.0,56036.0,0.160032]
[1725552787449,0.44971179,56037.0,56036.0,0.160032]
[1725552787648,0.3608,56037.0,56036.0,0.160032]
[1725552788245,0.38973691,56037.0,56036.0,0.160032]
[1725552788446,0.38973703,56037.0,56036.0,0.160032]
[1725552789638,0.44983682,56037.0,56036.0,0.338496]
[1725552789839,0.3608,56037.0,56036.0,0.39198756]
[1725552790235,0.3608,56037.0,56036.0,0.30275556]
[1725552790751,0.004,56038.0,56037.0,0.178462]
[1725552791750,0.03293505,56038.0,56037.0,0.178462]
[1725552791947,0.03293505,56038.0,56037.0,0.179462]
[1725552792140,0.004,56038.0,56037.0,0.179462]
[1725552792646,0.25293548,56038.0,56037.0,0.090231]
[1725552793038,0.34216448,56038.0,56037.0,0.004]
[1725552793244,0.40366834,56038.0,56037.0,0.004]
[1725552793550,0.348918,56038.0,56037.0,0.004]
[1725552793748,1.53902834,56038.0,56037.0,0.004]
[1725552794649,1.53902834,56038.0,56037.0,0.001]
[1725552794855,1.54002834,56038.0,56037.0,0.001]
[1725552795040,0.94002834,56038.0,56037.0,0.001]
[1725552796355,0.94002834,56038.0,56029.0,0.0604]
[1725552796542,0.3648,56030.0,56029.0,0.149643]
[1725552796742,0.3648,56030.0,56029.0,0.369643]
[1725552798153,0.3648,56030.0,56029.0,0.155643]
[1725552798154,0.3658,56030.0,56029.0,0.155643]
[1725552798349,0.454853,56030.0,56029.0,0.162643]
[1725552798657,0.3658,56030.0,56029.0,0.162643]
[1725552799046,0.3658,56030.0,56029.0,0.155643]
[1725552799245,0.3658,56030.0,56029.0,0.157643]
[1725552799447,0.454853,56030.0,56029.0,0.157643]
[1725552799641,0.3648,56030.0,56029.0,0.151643]
[1725552799846,0.3648,56030.0,56029.0,0.155643]
[1725552800249,0.453853,56030.0,56029.0,0.155643]
[1725552801059,0.3648,56030.0,56029.0,0.155643]
[1725552801363,0.37031913,56030.0,56029.0,0.155643]
[1725552801544,0.45937213,56030.0,56029.0,0.155643]
[1725552801963,0.3992598,56030.0,56029.0,0.154643]
[1725552802550,0.7600598,56030.0,56029.0,0.154643]
[1725552804847,0.73111913,56030.0,56029.0,0.154643]
[1725552805152,0.76005942,56030.0,56029.0,0.154643]
[1725552805344,0.76005942,56030.0,56029.0,0.155993]
[1725552807554,0.9800607,56030.0,56029.0,0.155993]
[1725552808056,0.7600607,56030.0,56029.0,0.155993]
[1725552811847,0.75454157,56030.0,56029.0,0.334479]
[1725552812050,0.81472846,56030.0,56029.0,0.334479]
[1725552813455,0.81472846,56030.0,56029.0,0.245236]
[1725552813662,0.75453947,56030.0,56029.0,0.245236]
[1725552813858,0.7256,56030.0,56029.0,0.245236]
[1725552814273,0.75453949,56030.0,56029.0,0.245236]
[1725552815161,0.7256,56030.0,56029.0,0.245236]
[1725552815368,0.7256,56030.0,56029.0,0.334479]
[1725552816266,0.7256,56030.0,56029.0,0.245236]
[1725552816656,0.8146976,56030.0,56029.0,0.245236]
[1725552817170,0.75454003,56030.0,56029.0,0.155993]
[1725552818067,0.75454003,56030.0,56029.0,0.245236]
[1725552818564,0.7256,56030.0,56029.0,0.245236]
[1725552818748,0.7256,56030.0,56029.0,0.155993]
[1725552818948,0.7256,56030.0,56029.0,0.245236]
[1725552819153,0.75453959,56030.0,56029.0,0.245236]
[1725552820162,0.75453959,56030.0,56029.0,0.155993]
[1725552822066,0.75453965,56030.0,56029.0,0.245236]
[1725552822770,0.75453965,56030.0,56029.0,0.38797056]
[1725552822953,0.75453965,56030.0,56029.0,0.245236]
[1725552825161,0.03293965,56030.0,56029.0,0.245236]
[1725552825465,0.39373965,56030.0,56029.0,0.245236]
[1725552825860,0.39373965,56030.0,56029.0,0.243236]
[1725552826656,0.36106763,56035.0,56029.0,0.243236]
[1725552826657,0.1068636,56034.0,56029.0,1.19884]
[1725552826862,0.10707425,56041.0,56037.0,0.267693]
[1725552827063,0.3608,56050.0,56040.0,0.22]
[1725552827064,0.10707425,56045.0,56040.0,0.22]
[1725552827254,0.3608,56050.0,56046.0,0.089216]
[1725552827458,0.44987973,56050.0,56049.0,0.089212]
[1725552827654,0.44987973,56050.0,56049.0,0.178424]
[1725552827871,0.44987767,56050.0,56049.0,0.178424]
[1725552828455,0.3608,56050.0,56049.0,0.398424]
[1725552828652,0.3748,56050.0,56049.0,0.398424]
[1725552828858,0.00026763,56055.0,56052.0,0.089207]
[1725552829159,0.00026763,56055.0,56049.0,1.71604]
[1725552829160,0.10707425,56066.0,56054.0,0.5808]
[1725552829353,0.08898363,56068.0,56067.0,0.089183]
[1725552829670,0.07106021,56071.0,56067.0,0.22]
[1725552829968,0.07105566,56074.0,56073.0,0.089173]
[1725552830161,0.3608,56077.0,56070.0,0.22]
[1725552830467,0.3608,56077.0,56068.0,0.00026763]
[1725552830468,0.05320999,56075.0,56074.0,0.089172]
[1725552830669,0.05320999,56075.0,56068.0,0.00026763]
[1725552830670,0.05320999,56076.0,56068.0,0.00026763]
[1725552830856,0.3608,56077.0,56068.0,0.00026763]
[1725552830857,0.3608,56077.0,56076.0,0.089169]
[1725552831263,0.00026763,56079.0,56078.0,0.089165]
[1725552831464,0.00026763,56079.0,56078.0,1.444125]
[1725552832063,0.00026763,56079.0,56078.0,0.309165]
[1725552832661,0.00026763,56079.0,56078.0,0.310165]
[1725552833768,0.00026763,56079.0,56078.0,1.45064393]
[1725552833962,0.00926763,56079.0,56078.0,0.31668393]
[1725552836067,0.00926763,56079.0,56078.0,0.31568393]
[1725552836974,0.00026763,56079.0,56078.0,0.310165]
[1725552838868,0.00026763,56079.0,56078.0,0.001]
[1725552839077,0.00026763,56079.0,56078.0,0.221]
[1725552839572,0.00026763,56079.0,56078.0,0.310165]
[1725552839975,1e-08,56079.0,56078.0,0.39933]
[1725552840273,0.36635565,56091.0,56090.0,0.089146]
[1725552840475,0.36188,56100.0,56090.0,0.22]
[1725552840669,0.3608,56100.0,56099.0,0.309132]
[1725552840865,0.3608,56109.0,56103.0,0.089125]
[1725552841069,0.36642135,56109.0,56108.0,0.309118]
[1725552842277,0.36642135,56109.0,56105.0,0.22]
[1725552842467,0.002,56106.0,56105.0,0.22]
[1725552842876,0.002,56106.0,56102.0,0.22]
[1725552843075,0.002,56103.0,56100.0,0.0002674]
[1725552843264,0.002,56103.0,56102.0,0.089127]
[1725552843576,0.002,56103.0,56102.0,0.309127]
[1725552846377,0.005,56103.0,56102.0,0.089127]
[1725552847075,0.005,56103.0,56102.0,0.309127]
[1725552847770,0.01048091,56103.0,56102.0,0.309127]
[1725552847970,0.005,56103.0,56102.0,0.309127]
[1725552849076,0.005,56103.0,56102.0,0.398254]
[1725552849668,0.0619,56113.0,56102.0,1.443847]
[1725552849875,0.0619,56113.0,56111.0,0.309113]
[1725552850071,0.00583069,56112.0,56111.0,0.309113]
[1725552850281,0.0002674,56112.0,56111.0,0.309113]
[1725552850677,0.0002674,56112.0,56111.0,0.089113]
[1725552850890,0.0032674,56112.0,56111.0,0.089113]
[1725552851374,0.0002674,56112.0,56111.0,0.398226]
[1725552851573,0.0002674,56112.0,56111.0,0.400226]
[1725552851574,0.0082674,56112.0,56111.0,0.400226]
[1725552852780,1e-08,56112.0,56111.0,0.850139]
[1725552852977,1e-08,56112.0,56111.0,1.99033732]
[1725552853683,1e-08,56112.0,56111.0,3.49033732]
[1725552853985,0.3608,56132.0,56112.0,0.53464]
[1725552854183,0.3608,56132.0,56131.0,0.309081]
[1725552854499,0.0593,56136.0,56135.0,0.089075]
[1725552855079,0.06485554,56136.0,56135.0,0.089075]
[1725552855584,0.089077,56134.0,56130.0,0.0002674]
[1725552855773,0.222,56131.0,56130.0,0.0002674]
[1725552856174,1.806361,56131.0,56130.0,0.0002674]
[1725552856378,1.869961,56131.0,56130.0,0.0002674]
[1725552857188,1.869961,56131.0,56119.0,0.0891]
[1725552857381,0.5808,56120.0,56119.0,0.0891]
[1725552857582,0.5828,56120.0,56119.0,0.0891]
[1725552858289,0.5828,56120.0,56119.0,0.0901]
[1725552858484,0.5828,56120.0,56119.0,0.0911]
[1725552859690,2.167259,56120.0,56119.0,0.002]
[1725552861889,0.94906361,56120.0,56119.0,0.002]
[1725552862292,2.08362361,56120.0,56119.0,0.002]
[1725552862485,2.2437791,56120.0,56119.0,0.002]
[1725552862676,2.17272261,56120.0,56119.0,0.002]
[1725552863582,2.17272261,56120.0,56114.0,0.0002674]
[1725552863780,0.74276028,56115.0,56114.0,0.0002674]
[1725552864186,1.11744,56115.0,56114.0,0.0002674]
[1725552864387,0.5828,56115.0,56114.0,0.0002674]
[1725552864890,0.5828,56115.0,56114.0,0.0012674]
[1725552865088,0.5828,56115.0,56114.0,0.0022674]
[1725552866382,0.5828,56115.0,56114.0,0.0913754]
[1725552866983,0.5838,56115.0,56114.0,0.0913754]
[1725552867390,0.5838,56115.0,56114.0,0.0022674]
[1725552870383,0.67278363,56115.0,56114.0,0.0022674]
[1725552870788,0.67264584,56115.0,56114.0,0.0022674]
[1725552870994,0.67264587,56115.0,56114.0,0.0022674]
[1725552871497,0.67264749,56115.0,56114.0,0.0022674]
[1725552871798,0.5838,56115.0,56114.0,0.0022674]
[1725552872297,0.45264748,56115.0,56114.0,0.0913754]
[1725552872500,0.003,56115.0,56114.0,0.4004834]
[1725552872886,0.07407348,56115.0,56114.0,0.4004834]
[1725552873483,0.003,56115.0,56114.0,0.4004834]
[1725552873681,0.003,56115.0,56114.0,0.0913754]
[1725552877896,0.003,56115.0,56114.0,0.0022674]
[1725552877897,0.3638,56115.0,56114.0,0.0022674]
[1725552878202,0.392698,56115.0,56114.0,0.0913754]
[1725552878499,0.3638,56115.0,56114.0,0.0913754]
[1725552878697,0.4526989,56115.0,56114.0,0.0913754]
[1725552880310,0.61269745,56115.0,56114.0,0.0022674]
[1725552880797,0.70180445,56115.0,56114.0,0.0022674]
[1725552881098,0.79091145,56115.0,56114.0,0.0022674]
[1725552881296,0.70180445,56115.0,56114.0,0.0022674]
[1725552881699,0.61269745,56115.0,56114.0,0.0022674]
[1725552881898,0.39269745,56115.0,56114.0,0.0913754]
[1725552883206,0.61269745,56115.0,56114.0,0.0913754]
[1725552883387,0.61269745,56115.0,56114.0,0.0022674]
[1725552884509,0.70180445,56115.0,56114.0,0.0022674]
[1725552884706,0.61269745,56115.0,56114.0,0.0022674]
[1725552885300,0.71938855,56115.0,56114.0,0.0022674]
[1725552885492,0.61269745,56115.0,56114.0,0.0022674]
[1725552887308,0.61134745,56115.0,56114.0,0.0022674]
[1725552888511,0.61069745,56115.0,56114.0,0.0022674]
[1725552889510,0.61069745,56115.0,56114.0,0.0913754]
[1725552891499,0.61069745,56115.0,56114.0,0.0022674]
[1725552891701,0.73423426,56115.0,56114.0,0.0022674]
[1725552893399,0.42512726,56115.0,56114.0,0.0913754]
[1725552894510,0.39069745,56115.0,56114.0,0.1804834]
[1725552895611,0.71757375,56115.0,56114.0,0.0913754]
[1725552895809,0.61069745,56115.0,56114.0,0.0022674]
[1725552896008,0.61069745,56115.0,56114.0,0.0913754]
[1725552896711,0.39069745,56115.0,56114.0,0.0913754]
[1725552897502,0.42512711,56115.0,56114.0,0.0913754]
[1725552900207,0.42512911,56115.0,56114.0,0.0913754]
[1725552900411,0.42512911,56115.0,56114.0,0.1804834]
[1725552900710,0.39069909,56115.0,56114.0,0.4004834]
[1725552901109,0.13676541,56115.0,56114.0,0.1804834]
[1725552901304,0.02989909,56115.0,56114.0,0.4895914]
[1725552901618,0.08904564,56115.0,56114.0,1.6242314]
[1725552901908,0.08904564,56117.0,56116.0,0.267315]
[1725552902109,0.00489652,56120.0,56119.0,0.0891]
[1725552902311,0.00593218,56125.0,56124.0,0.178184]
[1725552902503,0.00593218,56125.0,56124.0,0.398184]
[1725552903105,0.00593218,56125.0,56124.0,0.309092]
[1725552903313,0.00593218,56125.0,56124.0,0.398184]
[1725552904022,0.00593218,56125.0,56124.0,0.399184]
[1725552905503,0.00593218,56125.0,56124.0,0.400184]
[1725552906912,0.00593218,56125.0,56124.0,0.179184]
[1725552907115,0.00593218,56125.0,56124.0,0.091092]
[1725552908109,0.00593218,56125.0,56124.0,0.489276]
[1725552908412,0.07135225,56125.0,56124.0,0.850076]
[1725552908610,0.3608,56133.0,56132.0,0.17816]
[1725552908811,0.3608,56133.0,56132.0,0.39816]
[1725552909009,0.36629476,56133.0,56132.0,0.39816]
[1725552909402,0.36629476,56133.0,56132.0,0.48724]
[1725552909602,0.00549476,56133.0,56132.0,0.48724]
[1725552909805,0.0710123,56135.0,56134.0,0.178154]
[1725552910011,0.0710123,56137.0,56134.0,0.4239]
[1725552910311,0.0710123,56137.0,56136.0,0.398146]
[1725552910511,0.07683845,56138.0,56137.0,0.178144]
[1725552910710,0.0002674,56138.0,56137.0,0.178144]
[1725552911508,0.0002674,56138.0,56137.0,0.267216]
[1725552912115,0.0002674,56138.0,56137.0,0.268216]
[1725552912618,0.05321498,56145.0,56144.0,0.089061]
[1725552912806,0.05321498,56145.0,56144.0,0.309061]
[1725552913507,0.3608,56146.0,56145.0,0.089059]
[1725552913508,0.41401498,56146.0,56145.0,0.089059]
[1725552913909,0.41970844,56146.0,56145.0,0.089059]
[1725552914116,0.36649346,56146.0,56145.0,0.089059]
[1725552914617,0.36649346,56146.0,56145.0,0.311059]
[1725552914821,0.36649346,56146.0,56145.0,0.091059]
[1725552915017,0.36649346,56146.0,56145.0,0.002]
[1725552915422,0.36649346,56146.0,56145.0,0.091059]
[1725552915811,0.41957563,56146.0,56145.0,0.091059]
[1725552916017,0.41957563,56146.0,56145.0,0.155559]
[1725552916213,0.41957563,56146.0,56145.0,0.694477]
[1725552916214,4.6e-07,56146.0,56145.0,0.694477]
[1725552916418,0.36080045,56154.0,56146.0,0.089057]
[1725552916621,0.3608,56154.0,56153.0,0.398092]
[1725552918427,0.3608,56154.0,56153.0,0.310046]
[1725552918915,0.3608,56154.0,56153.0,0.399092]
[1725552919416,0.43158024,56164.0,56163.0,0.089031]
[1725552919417,0.3608,56164.0,56163.0,0.089031]
[1725552919728,0.089031,56163.0,56158.0,0.00026716]
[1725552919915,0.002,56159.0,56158.0,0.08930416]
[1725552920219,0.002,56159.0,56158.0,0.00026716]
[1725552920423,1.1362,56159.0,56158.0,0.00026716]
[1725552920926,0.089045,56154.0,56149.0,0.3221]
[1725552921128,0.5808,56150.0,56149.0,0.089053]
[1725552921427,0.5828,56150.0,56149.0,0.089053]
[1725552921813,0.3628,56150.0,56149.0,0.089053]
[1725552922833,0.3628,56150.0,56149.0,0.309053]
[1725552923126,0.3628,56150.0,56149.0,0.090053]
[1725552923322,0.3628,56150.0,56149.0,0.091053]
[1725552924318,0.3628,56150.0,56149.0,0.090053]
[1725552924631,0.36844378,56150.0,56149.0,0.400106]
[1725552924826,0.36844378,56150.0,56149.0,0.311053]
[1725552925531,0.36844378,56150.0,56149.0,0.091053]
[1725552926116,0.00764378,56150.0,56149.0,0.090053]
[1725552926322,0.00764378,56150.0,56149.0,0.091053]
[1725552926722,0.00764378,56150.0,56149.0,0.090053]
[1725552927230,0.00764378,56150.0,56149.0,0.091053]
[1725552928433,0.00764378,56150.0,56149.0,0.400106]
[1725552929733,0.07828773,56150.0,56149.0,0.400106]
[1725552929933,0.00764378,56150.0,56149.0,0.400106]
[1725552930645,0.07828773,56150.0,56149.0,0.400106]
[1725552930938,0.00764378,56150.0,56149.0,0.400106]
[1725552931235,0.07828773,56150.0,56149.0,0.400106]
[1725552931744,0.07854561,56150.0,56149.0,0.400106]
[1725552932533,0.00764378,56150.0,56149.0,0.400106]
[1725552934724,0.00764378,56150.0,56149.0,0.311053]
[1725552935137,0.00764378,56150.0,56149.0,0.091053]
[1725552935826,0.00764378,56150.0,56149.0,0.400106]
[1725552936030,0.07861816,56150.0,56149.0,0.400106]
[1725552936333,0.07861816,56150.0,56149.0,0.489159]
[1725552936531,0.07864416,56150.0,56149.0,0.489159]
[1725552937132,0.07864416,56150.0,56149.0,0.400106]
[1725552937328,0.00764378,56150.0,56149.0,0.399106]
[1725552937533,0.00764378,56150.0,56149.0,0.459806]
[1725552937832,0.07306055,56150.0,56149.0,0.548859]
[1725552938023,0.002,56150.0,56149.0,0.459806]
[1725552938426,0.07306154,56150.0,56149.0,0.089053]
[1725552938641,0.002,56150.0,56149.0,0.398106]
[1725552938844,0.002,56150.0,56149.0,0.758906]
[1725552939627,0.09062724,56150.0,56149.0,0.758906]
[1725552940436,0.002,56150.0,56149.0,0.758906]
[1725552943647,0.002,56150.0,56149.0,0.847959]
[1725552943841,0.002,56150.0,56149.0,0.758906]
[1725552944239,0.002,56150.0,56149.0,0.847959]
[1725552944939,0.002,56150.0,56149.0,0.398106]
[1725552945140,0.002,56150.0,56149.0,0.089053]
[1725552945447,0.222,56150.0,56149.0,0.089053]
[1725552945649,0.002,56150.0,56149.0,0.089053]
[1725552947147,0.222,56150.0,56146.0,0.089057]
[1725552947450,0.089058,56146.0,56144.0,0.00026716]
[1725552947743,0.12719428,56145.0,56137.0,0.3221]
[1725552947935,0.68957356,56138.0,56129.0,0.00144]
[1725552948131,0.08897922,56132.0,56131.0,0.089081]
[1725552948543,0.3089292,56132.0,56131.0,0.089081]
[1725552948739,0.3089292,56132.0,56126.0,0.00026716]
[1725552948740,0.24888767,56132.0,56126.0,0.00026716]
[1725552948940,0.32677356,56130.0,56126.0,0.00026716]
[1725552949140,0.002,56127.0,56126.0,0.08935616]
[1725552949340,0.002,56127.0,56126.0,0.30935616]
[1725552949341,0.0909366,56127.0,56126.0,0.30935616]
[1725552949548,0.002,56127.0,56126.0,0.30935616]
[1725552950348,0.002,56127.0,56126.0,0.31035616]
[1725552951758,0.002,56127.0,56126.0,0.31135616]
[1725552951759,0.009,56127.0,56126.0,0.31135616]
[1725552952345,0.01456097,56127.0,56126.0,0.09135616]
[1725552953351,0.23456097,56127.0,56126.0,0.00226716]
[1725552953949,0.29436097,56127.0,56126.0,0.00226716]
[1725552954735,1.78968097,56127.0,56126.0,0.00226716]
[1725552954948,1.87876897,56127.0,56126.0,0.00226716]
[1725552955150,1.9076624,56127.0,56126.0,0.00226716]
[1725552955354,0.4640544,56127.0,56126.0,0.00226716]
[1725552955656,0.65516097,56127.0,56126.0,0.09135616]
[1725552956540,1.87876897,56127.0,56126.0,0.00226716]
[1725552956753,1.90766419,56127.0,56126.0,0.00226716]
[1725552957052,1.90766419,56127.0,56117.0,0.089103]
[1725552957053,0.089093,56124.0,56117.0,0.089103]
[1725552957258,1.81857619,56127.0,56113.0,0.089108]
[1725552957259,0.5828,56118.0,56113.0,0.089108]
[1725552957449,0.07089682,56116.0,56109.0,0.3608]
[1725552957748,0.002,56110.0,56107.0,0.22]
[1725552957951,0.002,56108.0,56107.0,0.309119]
[1725552958149,0.002,56110.0,56109.0,0.089116]
[1725552959053,0.089118,56108.0,56107.0,0.011]
[1725552959352,0.311118,56108.0,56107.0,0.011]
[1725552959566,1.445798,56108.0,56107.0,0.011]
[1725552959747,1.35668,56108.0,56103.0,0.00026716]
[1725552959947,0.671924,56104.0,56103.0,0.00026716]
[1725552960148,0.671924,56104.0,56085.0,0.3221]
[1725552960149,0.08914,56095.0,56085.0,0.3221]
[1725552960359,0.222,56086.0,56085.0,0.089154]
[1725552960951,0.222,56086.0,56080.0,0.089161]
[1725552961153,0.22,56082.0,56077.0,0.0002674]
[1725552961353,0.002,56078.0,56077.0,0.0894334]
[1725552961557,0.3608,56084.0,56078.0,0.089165]
[1725552961558,0.22,56082.0,56078.0,0.089165]
[1725552962260,0.22,56082.0,56077.0,0.0002674]
[1725552962452,0.002,56078.0,56077.0,0.0894344]
[1725552963459,0.002,56078.0,56077.0,0.3094344]
[1725552963964,0.22,56091.0,56088.0,0.08915]
[1725552964150,0.22,56091.0,56082.0,0.089158]
[1725552964352,0.449937,56096.0,56079.0,0.3608]
[1725552964353,0.22,56087.0,56079.0,0.3608]
[1725552964550,0.22,56087.0,56086.0,0.089153]
[1725552965960,0.221,56087.0,56086.0,0.089153]
[1725552966860,0.221,56087.0,56086.0,0.091153]
[1725552967366,0.22,56087.0,56086.0,0.091153]
[1725552967955,0.22,56087.0,56086.0,0.002]
[1725552968158,0.22909974,56087.0,56086.0,0.002]
[1725552968359,0.76397974,56087.0,56086.0,0.002]
[1725552968969,1.36397974,56087.0,56086.0,0.002]
[1725552969167,1.36397974,56087.0,56077.0,0.0002674]
[1725552969369,0.3628,56078.0,56077.0,0.0002674]
[1725552969869,1.586925,56078.0,56077.0,0.0002674]
[1725552970165,1.49776,56078.0,56077.0,0.0002674]
[1725552970370,1.49776,56078.0,56060.0,0.089193]
[1725552970371,1.49776,56078.0,56060.0,0.3221]
[1725552970568,1.49776,56078.0,56051.0,0.5462]
[1725552970569,0.5808,56061.0,56051.0,0.00156]
[1725552970755,0.5808,56061.0,56047.0,0.0657]
[1725552970756,0.3628,56061.0,56059.0,0.089196]
[1725552970953,0.002,56061.0,56060.0,0.089194]
[1725552971157,0.00173283,56061.0,56060.0,0.713508]
[1725552971358,0.3608,56073.0,56060.0,1.224314]
[1725552971570,0.0002674,56066.0,56065.0,0.089186]
[1725552971772,0.0002674,56066.0,56065.0,0.985066]
[1725552971962,0.0002674,56066.0,56065.0,0.449986]
[1725552972863,0.0002674,56066.0,56065.0,0.669986]
[1725552973059,0.0032674,56066.0,56065.0,0.669986]
[1725552973666,0.0002674,56066.0,56065.0,0.671986]
[1725552973861,0.0002674,56066.0,56065.0,0.67745707]
[1725552974059,0.0002674,56066.0,56065.0,0.45745707]
[1725552974265,0.0002674,56066.0,56065.0,1.59253707]
[1725552974662,0.0002674,56066.0,56065.0,1.65733707]
[1725552974870,0.0002674,56066.0,56065.0,0.52225707]
[1725552975166,0.0002674,56066.0,56065.0,0.516786]
[1725552976466,0.0002674,56066.0,56065.0,1.651866]
[1725552977365,0.08916,56082.0,56065.0,1.651866]
[1725552977579,0.08916,56082.0,56080.0,0.089162]
[1725552977867,0.08916,56082.0,56081.0,0.156861]
[1725552978067,0.08916,56082.0,56081.0,0.0677]
[1725552978259,0.71996,56082.0,56073.0,0.0663]
[1725552978462,0.359172,56074.0,56073.0,0.0613]
[1725552978674,0.359172,56074.0,56069.0,0.089179]
[1725552978675,0.089178,56070.0,56068.0,0.0002674]
[1725552978868,0.002,56069.0,56068.0,0.0002674]